bitfinex-derivatives/quotes_BTCF0:USTF0_20250724
["timestamp","ask_amount","ask_price","bid_price","bid_amount"]
[1753384998221,0.86647326,119340.0,119330.0,0.95148215]
[1753384999322,0.86747326,119340.0,119330.0,0.95148215]
[1753385002522,0.58283094,119340.0,119330.0,1.21678447]
[1753385003122,0.84813326,119340.0,119330.0,0.95148215]
[1753385003326,0.86747326,119340.0,119330.0,0.95148215]
[1753385010331,0.33686862,119340.0,119330.0,0.95148215]
[1753385010636,0.86747326,119340.0,119330.0,0.95148215]
[1753385011035,0.84813326,119340.0,119330.0,0.95148215]
[1753385011538,0.84813326,119340.0,119330.0,1.21678447]
[1753385012334,0.58283094,119340.0,119330.0,1.21678447]
[1753385013742,0.84813326,119340.0,119330.0,1.21678447]
[1753385014838,0.84813326,119340.0,119330.0,0.95148215]
[1753385015244,0.86747326,119340.0,119330.0,0.78549115]
[1753385015445,0.86747326,119340.0,119330.0,0.95300215]
[1753385015643,0.86747326,119340.0,119330.0,0.89780215]
[1753385015838,0.86747326,119340.0,119330.0,0.73029115]
[1753385016039,0.86747326,119340.0,119330.0,0.95300215]
[1753385016436,0.33686862,119340.0,119330.0,0.95300215]
[1753385016745,0.86747326,119340.0,119330.0,0.95300215]
[1753385018443,0.33686862,119340.0,119330.0,0.95300215]
[1753385018843,0.86747326,119340.0,119330.0,0.95300215]
[1753385021045,0.33686862,119340.0,119330.0,0.95300215]
[1753385021247,0.86747326,119340.0,119330.0,0.95300215]
[1753385021443,0.84813326,119340.0,119330.0,0.95300215]
[1753385022345,0.29365862,119340.0,119330.0,1.21854447]
[1753385023052,0.29365862,119340.0,119330.0,1.29333528]
[1753385023352,0.29365862,119340.0,119330.0,1.21854447]
[1753385023948,0.29365862,119340.0,119330.0,1.29333528]
[1753385024348,0.55896094,119340.0,119330.0,1.29333528]
[1753385025451,0.29365862,119340.0,119330.0,1.29333528]
[1753385025749,0.56196094,119340.0,119330.0,1.29333528]
[1753385026546,0.56196094,119340.0,119330.0,1.02803296]
[1753385026753,0.58226094,119340.0,119330.0,1.29333528]
[1753385026952,0.84756326,119340.0,119330.0,1.21854447]
[1753385027855,0.84756326,119340.0,119330.0,0.95324215]
[1753385028955,0.31695862,119340.0,119330.0,0.95324215]
[1753385029146,0.84756326,119340.0,119330.0,0.95324215]
[1753385029648,0.84756326,119340.0,119330.0,1.02803296]
[1753385029855,0.84756326,119340.0,119330.0,1.29333528]
[1753385031350,0.84756326,119340.0,119330.0,1.21854447]
[1753385031758,0.84756326,119340.0,119330.0,1.29333528]
[1753385032158,0.84756326,119340.0,119330.0,1.21854447]
[1753385032760,0.84756326,119340.0,119330.0,1.29333528]
[1753385033659,0.84756326,119340.0,119330.0,1.21854447]
[1753385034269,0.84756326,119340.0,119330.0,1.29333528]
[1753385034558,0.84756326,119340.0,119330.0,1.02803296]
[1753385034763,0.84756326,119340.0,119330.0,1.21854447]
[1753385037164,0.84756326,119340.0,119330.0,0.95324215]
[1753385037363,0.33629862,119340.0,119330.0,0.95248215]
[1753385037560,0.86690326,119340.0,119330.0,0.95248215]
[1753385038261,0.86690326,119340.0,119330.0,0.78497115]
[1753385038562,0.86690326,119340.0,119330.0,0.72977115]
[1753385038758,1.13220558,119340.0,119330.0,0.71895115]
[1753385039158,1.13220558,119340.0,119330.0,0.13707115]
[1753385039361,0.86690326,119340.0,119330.0,0.88646215]
[1753385039662,0.86690326,119340.0,119330.0,0.90189215]
[1753385039865,0.86690326,119340.0,119330.0,0.95724215]
[1753385042966,0.86690326,119340.0,119330.0,0.37536215]
[1753385043167,1.13220558,119340.0,119330.0,0.20785115]
[1753385043464,1.13220558,119340.0,119330.0,0.37536215]
[1753385043465,0.86690326,119340.0,119330.0,0.37536215]
[1753385043660,0.86690326,119340.0,119330.0,0.20785115]
[1753385044062,0.33629862,119340.0,119330.0,0.37536215]
[1753385044263,0.86690326,119340.0,119330.0,0.37536215]
[1753385045465,0.33629862,119340.0,119330.0,0.37536215]
[1753385045664,0.86690326,119340.0,119330.0,0.37536215]
[1753385046965,0.33629862,119340.0,119330.0,0.37536215]
[1753385047168,0.86690326,119340.0,119330.0,0.37536215]
[1753385047468,1.13220558,119340.0,119330.0,0.20785115]
[1753385047666,0.86690326,119340.0,119330.0,0.20785115]
[1753385047971,0.86690326,119340.0,119330.0,0.37536215]
[1753385050762,1.13220558,119340.0,119330.0,0.20785115]
[1753385051169,0.86690326,119340.0,119330.0,0.20785115]
[1753385052876,0.86690326,119340.0,119330.0,0.37536215]
[1753385053173,0.86690326,119340.0,119330.0,0.97232215]
[1753385055176,0.33629862,119340.0,119330.0,0.97232215]
[1753385055374,0.86690326,119340.0,119330.0,0.97232215]
[1753385055569,0.33629862,119340.0,119330.0,0.20785115]
[1753385055770,0.86690326,119340.0,119330.0,0.20785115]
[1753385056172,0.33629862,119340.0,119330.0,0.37536215]
[1753385056375,0.86690326,119340.0,119330.0,0.37536215]
[1753385056777,0.33629862,119340.0,119330.0,0.37536215]
[1753385057077,0.86690326,119340.0,119330.0,0.37536215]
[1753385058975,0.33629862,119340.0,119330.0,0.20785115]
[1753385059378,0.86690326,119340.0,119330.0,0.20785115]
[1753385060772,0.31216862,119340.0,119330.0,0.64066447]
[1753385061270,0.55896094,119340.0,119330.0,0.37536215]
[1753385061476,0.55896094,119340.0,119330.0,0.64066447]
[1753385063272,0.64746276,119340.0,119330.0,0.37536215]
[1753385063475,0.31224862,119340.0,119330.0,0.80761115]
[1753385063678,0.31224862,119340.0,119330.0,0.97512215]
[1753385063878,0.66605276,119340.0,119330.0,0.80761115]
[1753385064080,0.31703862,119340.0,119330.0,0.80761115]
[1753385064276,0.67084276,119340.0,119330.0,0.80761115]
[1753385064476,0.67084276,119340.0,119330.0,0.97512215]
[1753385067179,0.69018276,119340.0,119330.0,0.20785115]
[1753385067385,0.69018276,119340.0,119330.0,0.81149115]
[1753385069183,0.69018276,119340.0,119330.0,0.97900215]
[1753385069485,0.69018276,119340.0,119330.0,0.81173115]
[1753385070487,0.33637862,119340.0,119330.0,0.81173115]
[1753385070687,0.69018276,119340.0,119330.0,0.81173115]
[1753385076490,0.69018276,119340.0,119330.0,0.97924215]
[1753385077389,0.69018276,119340.0,119330.0,0.81173115]
[1753385077889,0.69018276,119340.0,119330.0,0.20785115]
[1753385078089,0.69018276,119340.0,119330.0,0.80949115]
[1753385078388,0.69018276,119340.0,119330.0,0.80933115]
[1753385078688,0.214731,119330.0,119320.0,0.12972081]
[1753385078882,0.214731,119330.0,119300.0,0.13907226]
[1753385078883,0.2147591,119310.0,119300.0,0.13907226]
[1753385079083,0.56856324,119310.0,119300.0,0.04294162]
[1753385079279,0.69396772,119310.0,119300.0,0.04294162]
[1753385079479,0.69396772,119310.0,119300.0,0.09953162]
[1753385079683,0.69396772,119310.0,119300.0,0.16649423]
[1753385080286,0.34016358,119310.0,119300.0,0.16649423]
[1753385080483,0.69396772,119310.0,119300.0,0.16649423]
[1753385080990,0.34016358,119310.0,119300.0,0.17049423]
[1753385081192,0.69396772,119310.0,119300.0,0.17049423]
[1753385081692,0.69396772,119310.0,119300.0,0.17249423]
[1753385082193,0.34016358,119310.0,119300.0,0.17249423]
[1753385082400,0.69396772,119310.0,119300.0,0.08208423]
[1753385083392,0.69396772,119310.0,119300.0,0.09672423]
[1753385083690,0.69396772,119310.0,119300.0,0.21242423]
[1753385083999,0.69396772,119310.0,119300.0,0.37997733]
[1753385084185,0.69396772,119310.0,119300.0,0.21242423]
[1753385084588,0.69396772,119310.0,119300.0,0.18946423]
[1753385085194,0.69396772,119310.0,119300.0,0.37997733]
[1753385085697,0.69396772,119310.0,119300.0,0.21242423]
[1753385086197,0.69396772,119310.0,119300.0,0.37997733]
[1753385086600,0.69396772,119310.0,119300.0,0.21242423]
[1753385088191,0.69396772,119310.0,119300.0,0.18946423]
[1753385090299,0.34016358,119310.0,119300.0,0.18946423]
[1753385090599,0.69396772,119310.0,119300.0,0.18946423]
[1753385091700,0.34016358,119310.0,119300.0,0.18034261]
[1753385092001,0.34016358,119310.0,119300.0,0.07296261]
[1753385092393,0.69396772,119310.0,119300.0,0.07296261]
[1753385092698,0.34016358,119310.0,119300.0,0.07296261]
[1753385092900,0.69396772,119310.0,119300.0,0.07296261]
[1753385096400,0.2142431,119300.0,119290.0,0.00894356]
[1753385096594,0.1831272,119290.0,119280.0,0.13041758]
[1753385096796,0.56806134,119290.0,119280.0,0.29799878]
[1753385097602,0.2142572,119290.0,119280.0,0.30099878]
[1753385097899,0.6935385,119290.0,119280.0,1e-08]
[1753385098102,1.04734264,119290.0,119280.0,1e-08]
[1753385098796,0.33973436,119290.0,119280.0,1e-08]
[1753385098995,0.6935385,119290.0,119280.0,0.00885129]
[1753385099295,0.6671985,119290.0,119280.0,1e-08]
[1753385099498,1.02100264,119290.0,119280.0,1e-08]
[1753385099696,1.02200264,119290.0,119280.0,1e-08]
[1753385099903,0.1879453,119270.0,119260.0,0.09114]
[1753385100211,0.69304339,119270.0,119260.0,0.2587493]
[1753385100392,0.69304339,119270.0,119260.0,0.2749893]
[1753385100592,0.69304339,119270.0,119260.0,0.2979493]
[1753385101299,0.69404339,119270.0,119260.0,0.2979493]
[1753385101695,0.69404339,119270.0,119260.0,0.2989493]
[1753385101889,0.33544925,119270.0,119260.0,0.2989493]
[1753385102092,0.33244925,119270.0,119260.0,1.26311344]
[1753385102294,0.33244925,119270.0,119260.0,1.27199623]
[1753385102900,0.68925339,119270.0,119260.0,0.91819209]
[1753385103499,0.68925339,119270.0,119260.0,0.98412444]
[1753385103897,0.29354925,119270.0,119260.0,1.33792858]
[1753385104093,0.29354925,119270.0,119260.0,0.98412444]
[1753385104301,0.68925339,119270.0,119260.0,0.98412444]
[1753385104605,0.33544925,119270.0,119260.0,0.98412444]
[1753385106298,0.33244925,119270.0,119260.0,0.98412444]
[1753385107400,0.29354925,119270.0,119260.0,0.37376444]
[1753385107603,0.68625339,119270.0,119260.0,0.20615514]
[1753385107796,0.68925339,119270.0,119260.0,0.37376444]
[1753385108602,0.68925339,119270.0,119260.0,0.20615514]
[1753385109007,0.69404339,119270.0,119260.0,0.20615514]
[1753385109297,0.69404339,119270.0,119260.0,0.18319514]
[1753385109504,0.69404339,119270.0,119260.0,0.00988279]
[1753385110098,1.30864339,119270.0,119260.0,0.00988279]
[1753385110299,1.33027329,119270.0,119260.0,0.00988279]
[1753385110506,1.33027329,119270.0,119260.0,0.001]
[1753385110806,1.32927334,119270.0,119260.0,0.001]
[1753385111099,1.33027334,119270.0,119260.0,0.001]
[1753385111700,0.2158793,119260.0,119250.0,0.09975319]
[1753385112008,0.69464219,119260.0,119250.0,0.09975319]
[1753385112504,0.69464219,119260.0,119250.0,0.00907319]
[1753385112703,0.1880634,119250.0,119240.0,0.05512]
[1753385112912,0.2159074,119240.0,119230.0,0.72124]
[1753385113108,0.92351568,119240.0,119230.0,0.72124]
[1753385113303,0.69590304,119240.0,119230.0,0.72124]
[1753385113603,0.69490304,119240.0,119230.0,0.663]
[1753385113807,0.69490304,119240.0,119230.0,0.62927]
[1753385113808,1.04870718,119240.0,119230.0,0.62927]
[1753385114006,0.69490304,119240.0,119230.0,0.663]
[1753385114210,0.69490304,119240.0,119230.0,0.71487632]
[1753385115214,0.69390304,119240.0,119230.0,0.10047632]
[1753385115809,0.69390304,119240.0,119230.0,0.10147632]
[1753385117008,0.3400989,119240.0,119230.0,0.26912782]
[1753385117214,0.69390304,119240.0,119230.0,0.26912782]
[1753385117412,0.3400989,119240.0,119230.0,0.26912782]
[1753385117613,0.3400989,119240.0,119230.0,0.30814782]
[1753385117914,0.69390304,119240.0,119230.0,0.30814782]
[1753385118316,0.69390304,119240.0,119230.0,0.14049632]
[1753385120329,0.69390304,119240.0,119230.0,0.30814782]
[1753385120827,0.3400989,119240.0,119230.0,0.30814782]
[1753385121027,0.69390304,119240.0,119230.0,0.30814782]
[1753385121531,0.69390304,119240.0,119230.0,0.14049632]
[1753385122524,1.04770718,119240.0,119230.0,0.11663632]
[1753385123228,0.69390304,119240.0,119230.0,0.11663632]
[1753385124330,1.04770718,119240.0,119230.0,0.002]
[1753385126831,1.04770718,119240.0,119230.0,0.001]
[1753385127027,1.04970718,119240.0,119230.0,0.001]
[1753385127330,0.2107215,119230.0,119220.0,0.09966835]
[1753385127629,1.30429498,119230.0,119220.0,0.00898835]
[1753385127824,1.30429498,119230.0,119210.0,0.10735271]
[1753385127825,0.2107356,119220.0,119210.0,0.10735271]
[1753385128025,0.56453974,119220.0,119210.0,0.12251271]
[1753385128228,0.56453974,119220.0,119210.0,0.15507264]
[1753385128829,0.2107356,119220.0,119210.0,0.15507264]
[1753385129028,0.56453974,119220.0,119210.0,0.15507264]
[1753385129426,0.56453974,119220.0,119210.0,0.15607264]
[1753385129827,0.2107356,119220.0,119210.0,0.15607264]
[1753385130027,0.56453974,119220.0,119210.0,0.15607264]
[1753385130828,0.56453974,119220.0,119210.0,0.30707953]
[1753385131529,0.56453974,119220.0,119210.0,0.13939993]
[1753385131828,0.56453974,119220.0,119210.0,0.30707953]
[1753385133133,0.2107356,119220.0,119210.0,0.30707953]
[1753385133428,0.56453974,119220.0,119210.0,0.30707953]
[1753385133729,0.56453974,119220.0,119210.0,0.13939993]
[1753385136435,0.2107356,119220.0,119210.0,0.13939993]
[1753385136731,0.2107356,119220.0,119210.0,0.00969993]
[1753385136732,0.69091436,119220.0,119210.0,0.00969993]
[1753385136928,0.71224088,119220.0,119210.0,0.00969993]
[1753385138232,0.71224088,119220.0,119210.0,0.11453993]
[1753385138534,0.71324088,119220.0,119210.0,0.11453993]
[1753385139137,0.69191436,119220.0,119210.0,0.11453993]
[1753385139442,0.71326563,119220.0,119210.0,0.11453993]
[1753385139735,0.71326563,119220.0,119210.0,0.10584]
[1753385140034,0.71426389,119220.0,119210.0,0.10584]
[1753385141233,0.71426389,119220.0,119210.0,0.11471492]
[1753385141437,0.36045975,119220.0,119210.0,0.11471492]
[1753385141633,0.71426389,119220.0,119210.0,0.11471492]
[1753385142136,0.71426389,119220.0,119210.0,0.09068]
[1753385142742,0.71426389,119220.0,119210.0,0.09933462]
[1753385142939,0.36045975,119220.0,119210.0,0.09933462]
[1753385143238,0.71426389,119220.0,119210.0,0.09933462]
[1753385143442,0.67378389,119220.0,119210.0,0.09933462]
[1753385143939,0.31997975,119220.0,119210.0,0.09933462]
[1753385144141,0.67378389,119220.0,119210.0,0.09933462]
[1753385144731,0.31997975,119220.0,119210.0,0.09933462]
[1753385144936,0.67378389,119220.0,119210.0,0.09933462]
[1753385146338,0.31997975,119220.0,119210.0,0.09933462]
[1753385146540,0.67378389,119220.0,119210.0,0.09933462]
[1753385147442,0.67478389,119220.0,119210.0,0.09933462]
[1753385147946,0.67378389,119220.0,119210.0,0.09933462]
[1753385148130,0.67578389,119220.0,119210.0,0.09933462]
[1753385148547,0.71543389,119220.0,119210.0,0.09933462]
[1753385148942,0.36162975,119220.0,119210.0,0.09933462]
[1753385149144,0.71543389,119220.0,119210.0,0.09933462]
[1753385154450,0.71543389,119220.0,119210.0,0.07794462]
[1753385154951,0.71543389,119220.0,119210.0,0.04421462]
[1753385156850,0.71543389,119220.0,119210.0,0.07906462]
[1753385157251,0.71543389,119220.0,119210.0,0.10070462]
[1753385157650,0.71543389,119220.0,119210.0,0.13989462]
[1753385157953,1.33851389,119220.0,119210.0,0.13989462]
[1753385158140,0.71543389,119220.0,119210.0,0.13989462]
[1753385158345,1.33783389,119220.0,119210.0,0.13989462]
[1753385159249,0.71543389,119220.0,119210.0,0.13989462]
[1753385159449,1.33783389,119220.0,119210.0,0.30757422]
[1753385159642,1.33783389,119220.0,119210.0,0.13989462]
[1753385160047,1.33783389,119220.0,119190.0,0.11069053]
[1753385160048,0.1836637,119200.0,119190.0,0.10906]
[1753385160355,0.2099477,119190.0,119180.0,0.7531]
[1753385160557,0.56375184,119190.0,119180.0,0.7531]
[1753385160756,0.6899746,119190.0,119180.0,0.76204604]
[1753385161057,0.33617046,119190.0,119180.0,0.30800784]
[1753385161251,0.6889746,119190.0,119180.0,0.92988784]
[1753385161554,0.33258046,119190.0,119180.0,0.93072784]
[1753385161854,0.6853846,119190.0,119180.0,0.93072784]
[1753385162250,0.6853846,119190.0,119180.0,0.30800784]
[1753385162452,0.6853846,119190.0,119180.0,0.93176784]
[1753385162751,0.6863846,119190.0,119180.0,0.93376784]
[1753385163150,0.6873846,119190.0,119180.0,0.93376784]
[1753385163344,0.6889746,119190.0,119180.0,0.14328604]
[1753385163855,0.6889746,119190.0,119180.0,0.74266604]
[1753385164256,0.6889746,119190.0,119180.0,0.74286604]
[1753385165142,0.6889746,119190.0,119180.0,0.11998604]
[1753385165550,0.33517046,119190.0,119180.0,0.74202604]
[1753385165742,0.6889746,119190.0,119180.0,0.76532604]
[1753385166148,0.33517046,119190.0,119180.0,0.76532604]
[1753385166648,0.6889746,119190.0,119180.0,0.76532604]
[1753385168655,0.33517046,119190.0,119180.0,0.76532604]
[1753385168846,0.6889746,119190.0,119180.0,0.76532604]
[1753385169451,0.6889746,119190.0,119180.0,0.01204604]
[1753385169651,0.7103005,119190.0,119180.0,0.04525604]
[1753385169957,0.7103005,119190.0,119180.0,0.72706604]
[1753385170156,0.7103005,119190.0,119180.0,0.10154604]
[1753385170455,0.7103005,119190.0,119180.0,0.0906]
[1753385170762,0.7093005,119190.0,119180.0,0.0926]
[1753385170963,0.7103005,119190.0,119180.0,0.71768]
[1753385171457,0.35649636,119190.0,119180.0,0.71768]
[1753385171758,0.7103005,119190.0,119180.0,0.8844018]
[1753385171953,0.6889746,119190.0,119180.0,0.9264918]
[1753385172153,0.6889746,119190.0,119180.0,0.75877]
[1753385172354,0.6879746,119190.0,119180.0,0.75477]
[1753385172560,0.6879746,119190.0,119180.0,0.9234918]
[1753385172754,0.6889746,119190.0,119180.0,0.2984118]
[1753385172947,0.33358046,119190.0,119180.0,0.9235718]
[1753385173146,0.6863846,119190.0,119180.0,0.9235718]
[1753385174353,0.6873846,119190.0,119180.0,0.9235718]
[1753385175950,0.33358046,119190.0,119180.0,0.9235718]
[1753385176152,0.6873846,119190.0,119180.0,0.9235718]
[1753385177461,0.33358046,119190.0,119180.0,0.9235718]
[1753385177660,0.1916429,119200.0,119180.0,1.44518394]
[1753385177858,0.2515517,119200.0,119190.0,0.2972977]
[1753385178863,0.2525517,119200.0,119190.0,0.2972977]
[1753385179564,0.2515517,119200.0,119190.0,0.2972977]
[1753385181165,0.2515517,119200.0,119190.0,0.37220638]
[1753385181366,0.2515517,119200.0,119190.0,0.2972977]
[1753385181864,0.2754917,119200.0,119190.0,0.9188177]
[1753385182167,0.2764917,119200.0,119190.0,0.9188177]
[1753385182468,0.1686937,119200.0,119190.0,1.27262184]
[1753385182667,0.1686937,119200.0,119190.0,0.9188177]
[1753385183867,0.1686937,119200.0,119190.0,0.2972977]
[1753385184166,0.1926337,119200.0,119190.0,0.9184177]
[1753385184761,0.1926337,119200.0,119190.0,0.2972977]
[1753385184961,0.1926337,119200.0,119190.0,0.9176977]
[1753385188874,0.1686937,119200.0,119190.0,0.9176977]
[1753385189769,0.1686937,119200.0,119190.0,1.27150184]
[1753385190573,0.1686937,119200.0,119190.0,0.9176977]
[1753385190972,0.1926337,119200.0,119190.0,0.9176977]
[1753385192967,0.1686937,119200.0,119190.0,1.27150184]
[1753385194769,0.56272784,119200.0,119190.0,0.9176977]
[1753385195277,0.56272784,119200.0,119190.0,0.9134977]
[1753385198676,0.2089237,119200.0,119190.0,0.9134977]
[1753385198871,0.2079237,119200.0,119190.0,0.9134977]
[1753385203783,0.2079237,119200.0,119190.0,0.98840638]
[1753385203982,0.2079237,119200.0,119190.0,0.9134977]
[1753385204182,0.2079237,119200.0,119190.0,0.98840638]
[1753385204983,0.2079237,119200.0,119190.0,0.9134977]
[1753385205276,0.2079237,119200.0,119190.0,0.98840638]
[1753385206286,0.2079237,119200.0,119190.0,0.37220638]
[1753385208096,0.04023,119200.0,119190.0,0.37220638]
[1753385208295,0.1686951,119200.0,119190.0,0.72601052]
[1753385208485,0.1686951,119200.0,119190.0,1.33849052]
[1753385209799,0.001,119200.0,119190.0,1.33849052]
[1753385210595,0.46314354,119220.0,119210.0,0.1676801]
[1753385210896,0.29308782,119220.0,119210.0,1.33543466]
[1753385211092,0.33282782,119220.0,119210.0,1.33543466]
[1753385211297,0.33282782,119220.0,119210.0,0.98163052]
[1753385211798,0.33482782,119220.0,119210.0,0.98263052]
[1753385212398,0.33882782,119220.0,119210.0,0.98363052]
[1753385212799,0.33982782,119220.0,119210.0,0.98363052]
[1753385215200,0.33982782,119220.0,119210.0,0.9082601]
[1753385217403,0.69363196,119220.0,119210.0,0.9082601]
[1753385219504,0.33982782,119220.0,119210.0,0.9082601]
[1753385220397,0.69363196,119220.0,119210.0,0.9082601]
[1753385220596,0.69522196,119220.0,119210.0,0.1289]
[1753385220804,0.69522196,119220.0,119210.0,0.002]
[1753385221303,0.1676946,119200.0,119190.0,0.0515]
[1753385221505,0.1676946,119200.0,119180.0,0.2191381]
[1753385221506,0.2100387,119190.0,119180.0,0.2191381]
[1753385221707,0.56384284,119190.0,119180.0,0.31149018]
[1753385222010,0.56384284,119190.0,119180.0,0.17974344]
[1753385222207,0.69035792,119190.0,119180.0,0.09209344]
[1753385222509,0.69035792,119190.0,119180.0,0.62606768]
[1753385222808,0.69035792,119190.0,119180.0,0.01686768]
[1753385223104,0.69035792,119190.0,119180.0,0.62686768]
[1753385224304,0.69035792,119190.0,119180.0,0.79458998]
[1753385224505,0.69035792,119190.0,119180.0,0.62686768]
[1753385225403,0.69035792,119190.0,119180.0,0.79458998]
[1753385225708,0.69035792,119190.0,119180.0,0.82680998]
[1753385226307,0.69035792,119190.0,119180.0,0.79458998]
[1753385227310,0.69135792,119190.0,119180.0,0.79558998]
[1753385227909,0.69135792,119190.0,119180.0,0.01886768]
[1753385228205,0.2100817,119160.0,119150.0,0.1269]
[1753385228607,1.04323351,119160.0,119150.0,0.1269]
[1753385228803,1.04323351,119160.0,119150.0,0.10393]
[1753385229005,0.2100958,119150.0,119140.0,0.84887625]
[1753385229211,0.56389994,119150.0,119140.0,0.82590625]
[1753385229507,0.68744347,119150.0,119140.0,0.11257843]
[1753385229807,0.68944347,119150.0,119140.0,0.93015823]
[1753385230004,0.68944347,119150.0,119140.0,0.95283823]
[1753385230710,0.68844347,119150.0,119140.0,0.95283823]
[1753385231009,0.69044347,119150.0,119140.0,0.95235823]
[1753385231710,0.16728353,119150.0,119140.0,0.95235823]
[1753385232111,0.33504933,119150.0,119140.0,1.01890549]
[1753385232906,0.33604933,119150.0,119140.0,1.01890549]
[1753385233502,0.16728353,119150.0,119140.0,1.01890549]
[1753385233702,0.12854353,119150.0,119140.0,1.01890549]
[1753385234708,0.29630933,119150.0,119140.0,1.01890549]
[1753385235312,0.31936933,119150.0,119140.0,1.01890549]
[1753385235610,0.33545933,119150.0,119140.0,1.01890549]
[1753385235816,0.2099158,119150.0,119140.0,1.01890549]
[1753385236110,0.1707658,119150.0,119140.0,1.01890549]
[1753385237011,0.1938258,119150.0,119140.0,1.01890549]
[1753385237914,0.1938258,119150.0,119140.0,0.85112569]
[1753385237915,0.2109158,119150.0,119140.0,0.85112569]
[1753385238209,0.56630994,119150.0,119140.0,0.85112569]
[1753385238710,0.56630994,119150.0,119140.0,1.01890549]
[1753385242008,0.56630994,119150.0,119140.0,0.95235823]
[1753385242211,0.56630994,119150.0,119130.0,0.1258419]
[1753385242212,0.2095198,119140.0,119130.0,0.08936]
[1753385242403,0.56332394,119140.0,119130.0,0.08936]
[1753385242607,0.68930962,119140.0,119130.0,0.08936]
[1753385242808,0.33550548,119140.0,119130.0,0.12729]
[1753385243713,0.69030962,119140.0,119130.0,0.12729]
[1753385244618,0.69030962,119140.0,119130.0,0.13621909]
[1753385245914,0.33650548,119140.0,119130.0,0.13621909]
[1753385246121,0.69030962,119140.0,119130.0,0.13621909]
[1753385249317,0.69030962,119140.0,119130.0,0.30401299]
[1753385250321,0.12698568,119140.0,119130.0,0.65781713]
[1753385250520,0.1687798,119140.0,119130.0,0.65781713]
[1753385250720,0.1687798,119140.0,119130.0,0.30401299]
[1753385250927,0.1687798,119140.0,119130.0,0.65781713]
[1753385251823,0.1687798,119140.0,119130.0,0.30401299]
[1753385252027,0.1687798,119140.0,119130.0,0.65781713]
[1753385253232,0.19237669,119140.0,119130.0,0.65781713]
[1753385253528,0.02459689,119140.0,119130.0,0.65781713]
[1753385253924,0.02459689,119140.0,119130.0,0.30401299]
[1753385254125,0.02459689,119140.0,119130.0,0.65781713]
[1753385254432,0.02459689,119140.0,119130.0,0.30401299]
[1753385254630,0.02459689,119140.0,119130.0,0.65781713]
[1753385255129,0.001,119140.0,119130.0,0.65781713]
[1753385255331,0.2907952,119160.0,119150.0,0.2950557]
[1753385255531,0.67079829,119160.0,119150.0,0.9596157]
[1753385256529,0.31799415,119160.0,119150.0,0.9596157]
[1753385256835,0.2935955,119150.0,119140.0,0.05343]
[1753385257028,0.67080429,119150.0,119140.0,0.2950697]
[1753385257227,0.67080429,119150.0,119140.0,0.9584697]
[1753385257732,0.31541015,119150.0,119140.0,0.9584697]
[1753385257928,0.31641015,119150.0,119140.0,0.9584697]
[1753385258229,0.31641015,119150.0,119140.0,0.9590697]
[1753385258429,0.27446665,119150.0,119140.0,0.9590697]
[1753385259325,0.62986079,119150.0,119140.0,0.79021]
[1753385259521,0.1846695,119140.0,119130.0,0.14261729]
[1753385259728,0.58626259,119140.0,119130.0,1.0256226]
[1753385260624,0.58726259,119140.0,119130.0,1.0266226]
[1753385260828,0.58726259,119140.0,119130.0,1.0408226]
[1753385261231,0.23345845,119140.0,119130.0,0.3788226]
[1753385261529,0.58726259,119140.0,119130.0,1.0403826]
[1753385262121,0.58726259,119140.0,119130.0,1.04918765]
[1753385264135,0.41948309,119140.0,119130.0,1.04918765]
[1753385264427,0.06567895,119140.0,119130.0,1.04918765]
[1753385264631,0.23345885,119140.0,119130.0,0.38762765]
[1753385264833,0.23345885,119140.0,119130.0,1.04674765]
[1753385265636,0.2098499,119140.0,119130.0,1.04674765]
[1753385266229,0.56365404,119140.0,119130.0,1.04674765]
[1753385269232,0.2098499,119140.0,119130.0,1.04674765]
[1753385269434,0.56206404,119140.0,119130.0,0.13594505]
[1753385269626,0.33577443,119140.0,119130.0,0.80410505]
[1753385269828,0.35671697,119140.0,119130.0,0.80410505]
[1753385270236,0.71052111,119140.0,119130.0,0.80410505]
[1753385270536,0.35671697,119140.0,119130.0,0.97189905]
[1753385270736,0.71052111,119140.0,119130.0,0.97189905]
[1753385271036,0.71052111,119140.0,119130.0,0.80410505]
[1753385272232,0.71052111,119140.0,119130.0,0.13594505]
[1753385272438,0.71052111,119140.0,119130.0,0.80326505]
[1753385272739,0.35671697,119140.0,119130.0,0.97105905]
[1753385272931,0.71052111,119140.0,119130.0,0.97105905]
[1753385273131,0.68957857,119140.0,119130.0,0.97105905]
[1753385273728,0.68957857,119140.0,119130.0,0.80326505]
[1753385274439,0.33577443,119140.0,119130.0,0.97105905]
[1753385274639,0.68957857,119140.0,119130.0,0.97105905]
[1753385274840,0.68957857,119140.0,119130.0,0.80326505]
[1753385275542,0.68957857,119140.0,119130.0,0.80730505]
[1753385275738,0.33577443,119140.0,119130.0,0.13594505]
[1753385275937,0.33577443,119140.0,119130.0,0.80634505]
[1753385275938,0.68957857,119140.0,119130.0,0.80634505]
[1753385276341,0.68957857,119140.0,119130.0,0.97413905]
[1753385277151,0.68957857,119140.0,119130.0,0.80634505]
[1753385278047,0.33577443,119140.0,119130.0,0.80634505]
[1753385278248,0.68957857,119140.0,119130.0,0.80634505]
[1753385279250,0.68957857,119140.0,119130.0,0.97413905]
[1753385279453,0.68957857,119140.0,119130.0,0.80634505]
[1753385280050,0.33577443,119140.0,119130.0,0.80634505]
[1753385280250,0.68957857,119140.0,119130.0,0.80634505]
[1753385280847,1.04338271,119140.0,119130.0,0.00980505]
[1753385281045,0.208864,119130.0,119120.0,0.10349]
[1753385281352,0.68911107,119130.0,119120.0,0.76989]
[1753385281553,0.68911107,119130.0,119120.0,0.79254]
[1753385282054,0.33530693,119130.0,119120.0,0.8013197]
[1753385282245,0.69011107,119130.0,119120.0,0.8016797]
[1753385282949,0.69211107,119130.0,119120.0,0.8016797]
[1753385283253,0.33830693,119130.0,119120.0,0.8010397]
[1753385283451,0.69211107,119130.0,119120.0,0.8010397]
[1753385285649,0.69211107,119130.0,119120.0,0.1359197]
[1753385285850,0.2073153,119100.0,119090.0,0.2939855]
[1753385286151,0.0419583,119110.0,119100.0,0.3778892]
[1753385286152,0.2063047,119110.0,119100.0,0.3778892]
[1753385286347,0.1080882,119120.0,119100.0,0.2100539]
[1753385286551,0.64501024,119120.0,119110.0,0.9568013]
[1753385286751,0.77038326,119120.0,119110.0,0.9568013]
[1753385287154,0.77197326,119120.0,119110.0,0.9563613]
[1753385287356,0.77197326,119120.0,119110.0,0.96513957]
[1753385287655,0.77397326,119120.0,119110.0,0.96513957]
[1753385288254,0.77497326,119120.0,119110.0,0.96513957]
[1753385289254,0.77238326,119120.0,119110.0,0.96513957]
[1753385289554,0.77338326,119120.0,119110.0,0.96513957]
[1753385293657,0.41857912,119120.0,119110.0,0.30273957]
[1753385293857,0.38009912,119120.0,119110.0,1.31426371]
[1753385294256,0.33814452,119120.0,119110.0,1.31426371]
[1753385294457,0.33814452,119120.0,119110.0,0.96045957]
[1753385295557,0.36194452,119120.0,119110.0,0.96045957]
[1753385297162,0.36194452,119120.0,119110.0,1.31426371]
[1753385299465,0.003,119120.0,119110.0,1.31426371]
[1753385300352,0.003,119120.0,119110.0,0.96045957]